[Event "Paracin Open 2022"]
[Site "Paracin"]
[Date "2022.07.16"]
[Round "9.11"]
[White "Petrov, Nikita"]
[Black "Arpita, Mukherjee"]
[Result "1-0"]
[ECO "A45"]
[WhiteElo "2558"]
[BlackElo "2281"]
[Annotator "ChessBase"]
[PlyCount "103"]
[EventDate "2022.07.08"]
[EventCountry "SRB"]
[SourceTitle "playchess.com"]
[Source "ChessBase"]
[SourceQuality "1"]
[TimeControl "5400+30"]

1. d4 {[%emt 0:00:05]} Nf6 {[%emt 0:05:27]} 2. Bg5 {[%emt 0:00:06]} Ne4 {[%emt 0:00:39]} 3. Bf4 {[%emt 0:00:08]} d5 {[%emt 0:00:18]} 4. e3 {[%emt 0:00:36]} c5 {[%emt 0:00:24]} 5. Nd2 {[%emt 0:00:41]} Bf5 {[%emt 0:05:04]} 6. Bxb8 {[%emt 0:06:04]} Rxb8 {[%emt 0:03:50]} 7. Nxe4 {[%emt 0:04:27]} dxe4 {[%emt 0:00:13]} 8. Bb5+ {[%emt 0:08:01]} Bd7 {[%emt 0:03:34]} 9. Bxd7+ {[%emt 0:00:10]} Qxd7 {[%emt 0:00:05]} 10. dxc5 {[%emt 0:00:05]} Qb5 {[%emt 0:07:41]} 11. Qd4 {[%emt 0:09:00]} Rd8 {[%emt 0:05:36]} 12. Qxe4 {[%emt 0:05:42]} g6 {[%emt 0:07:41]} 13. Nf3 {[%emt 0:19:18]} Bg7 {[%emt 0:06:03]} 14. c3 {[%emt 0:43:07]} O-O {[%emt 0:10:01]} 15. Qc2 {[%emt 0:00:00]} a5 {[%emt 0:06:18]} 16. Qb3 {[%emt 0:00:00]} Qxc5 {[%emt 0:03:29]} 17. a4 {[%emt 0:00:00]} Rb8 {[%emt 0:03:27]} 18. Nd4 {[%emt 0:00:00]} Bxd4 {[%emt 0:08:43]} 19. cxd4 {[%emt 0:00:00]} Qc6 {[%emt 0:03:28]} 20. O-O {[%emt 0:00:00]} Rfc8 {[%emt 0:00:09]} 21. h3 {[%emt 0:00:00]} b5 {[%emt 0:01:08]} 22. axb5 {[%emt 0:00:00]} Qxb5 {[%emt 0:05:11]} 23. Qa3 {[%emt 0:00:00]} Qb4 {[%emt 0:11:54]} 24. Qxa5 {[%emt 0:00:00]} Qxa5 {[%emt 0:00:07]} 25. Rxa5 {[%emt 0:00:00]} Rxb2 {[%emt 0:00:09]} 26. Rg5 {[%emt 0:00:00]} f5 {[%emt 0:01:59]} 27. Rg3 {[%emt 0:00:00]} Rcc2 {[%emt 0:00:47]} 28. Rf3 {[%emt 0:00:00]} e6 {[%emt 0:00:29]} 29. g4 {[%emt 0:00:00]} Kg7 {[%emt 0:00:28]} 30. Kg2 {[%emt 0:00:00]} Rd2 {[%emt 0:00:34]} 31. Kg3 {[%emt 0:00:18]} Kf6 {[%emt 0:01:04]} 32. Rc1 {[%emt 0:00:41]} h5 {[%emt 0:00:00]} 33. gxh5 {[%emt 0:02:32]} gxh5 {[%emt 0:00:00]} 34. Rc8 {[%emt 0:00:32]} Rb1 {[%emt 0:00:32]} 35. Rh8 {[%emt 0:01:57]} Kg6 {[%emt 0:00:19]} 36. Kf4 {[%emt 0:00:26]} Rb5 {[%emt 0:00:34]} 37. Rg3+ {[%emt 0:00:23]} Kf6 {[%emt 0:00:35]} 38. f3 {[%emt 0:02:00]} Rdb2 {[%emt 0:01:30]} 39. Rh6+ {[%emt 0:00:34]} Kf7 {[%emt 0:00:00]} 40. Rxh5 {[%emt 0:01:56]} R2b4 {[%emt 0:00:00]} 41. Rh7+ {[%emt 0:00:20]} Kf6 {[%emt 0:00:00]} 42. Rh6+ {[%emt 0:00:04]} Kf7 {[%emt 0:00:43]} 43. Kg5 {[%emt 0:00:58]} f4+ {[%emt 0:01:07]} 44. Kxf4 {[%emt 0:00:07]} e5+ {[%emt 0:00:13]} 45. Ke4 {[%emt 0:00:12]} exd4 {[%emt 0:00:03]} 46. exd4 {[%emt 0:00:18]} Rb8 {[%emt 0:00:20]} 47. Rh7+ {[%emt 0:00:07]} Kf6 {[%emt 0:00:05]} 48. Rh6+ {[%emt 0:00:03]} Kf7 {[%emt 0:00:05]} 49. Rd6 {[%emt 0:00:58]} Re8+ {[%emt 0:00:35]} 50. Kf4 {[%emt 0:00:11]} Rb3 {[%emt 0:00:30]} 51. Rd5 {[%emt 0:00:31]} Ree3 {[%emt 0:00:17]} 52. Rf5+ {[%emt 0:00:31]} 1-0

[Event "Paracin Open 2022"]
[Site "Paracin"]
[Date "2022.07.16"]
[Round "9.12"]
[White "Ristic, Nenad"]
[Black "Makarian, Rudik"]
[Result "0-1"]
[ECO "B22"]
[WhiteElo "2293"]
[BlackElo "2533"]
[Annotator "ChessBase"]
[PlyCount "150"]
[EventDate "2022.07.08"]
[EventCountry "SRB"]
[SourceTitle "playchess.com"]
[Source "ChessBase"]
[SourceQuality "1"]
[TimeControl "5400+30"]

1. e4 {[%emt 0:00:03]} c5 {[%emt 0:02:18]} 2. Nf3 {[%emt 0:00:14]} e6 {[%emt 0:00:33]} 3. c3 {[%emt 0:00:07]} d5 {[%emt 0:00:21]} 4. exd5 {[%emt 0:00:11]} Qxd5 {[%emt 0:00:04]} 5. d4 {[%emt 0:00:10]} Nf6 {[%emt 0:00:05]} 6. Bd3 {[%emt 0:03:52]} Be7 {[%emt 0:02:50]} 7. O-O {[%emt 0:00:14]} O-O {[%emt 0:02:02]} 8. Be3 {[%emt 0:01:40]} cxd4 {[%emt 0:04:39]} 9. cxd4 {[%emt 0:00:22]} Nc6 {[%emt 0:07:05]} 10. Nc3 {[%emt 0:01:00]} Qd8 {[%emt 0:00:06]} 11. a3 {[%emt 0:00:23]} b6 {[%emt 0:00:23]} 12. Qe2 {[%emt 0:04:25]} Bb7 {[%emt 0:00:12]} 13. Rad1 {[%emt 0:00:14]} Rc8 {[%emt 0:01:41]} 14. Rfe1 {[%emt 0:01:23]} Na5 {[%emt 0:01:53]} 15. Bb1 {[%emt 0:09:46]} Nc4 {[%emt 0:01:19]} 16. Ba2 {[%emt 0:06:42]} Bxf3 {[%emt 0:03:01]} 17. gxf3 {[%emt 0:02:55]} Nxe3 {[%emt 0:02:27]} 18. Qxe3 {[%emt 0:05:22]} Qc7 {[%emt 0:01:38]} 19. Rc1 {[%emt 0:05:54]} Bd6 {[%emt 0:01:57]} 20. Ne4 {[%emt 0:11:27]} Qe7 {[%emt 0:07:25]} 21. Qg5 {[%emt 0:03:54]} Nxe4 {[%emt 0:01:14]} 22. Qxe7 {[%emt 0:00:15]} Bxe7 {[%emt 0:00:05]} 23. fxe4 {[%emt 0:00:53]} Bg5 {[%emt 0:00:04]} 24. Rxc8 {[%emt 0:01:18]} Rxc8 {[%emt 0:00:05]} 25. Re2 {[%emt 0:00:18]} Kf8 {[%emt 0:00:36]} 26. d5 {[%emt 0:01:50]} Ke7 {[%emt 0:00:44]} 27. Kg2 {[%emt 0:06:55]} Bf4 {[%emt 0:00:05]} 28. a4 {[%emt 0:00:53]} Be5 {[%emt 0:01:55]} 29. Bb3 {[%emt 0:05:01]} Rc1 {[%emt 0:06:58]} 30. h3 {[%emt 0:04:02]} h6 {[%emt 0:04:08]} 31. dxe6 {[%emt 0:02:47]} fxe6 {[%emt 0:00:06]} 32. Rc2 {[%emt 0:00:12]} Rxc2 {[%emt 0:00:08]} 33. Bxc2 {[%emt 0:00:02]} Bxb2 {[%emt 0:00:18]} 34. f4 {[%emt 0:00:38]} Kd6 {[%emt 0:07:30]} 35. Bb3 {[%emt 0:01:49]} e5 {[%emt 0:01:43]} 36. f5 {[%emt 0:00:12]} Kc5 {[%emt 0:02:12]} 37. Kf3 {[%emt 0:00:04]} Kb4 {[%emt 0:00:30]} 38. Bc2 {[%emt 0:00:15]} Bc1 {[%emt 0:14:10]} 39. Ke2 {[%emt 0:00:26]} Kc3 {[%emt 0:00:13]} 40. Bd3 {[%emt 0:02:41]} Kd4 {[%emt 0:00:27]} 41. Bb1 {[%emt 0:00:26]} Bg5 {[%emt 0:00:16]} 42. Bc2 {[%emt 0:00:23]} h5 {[%emt 0:00:21]} 43. Bb1 {[%emt 0:00:17]} h4 {[%emt 0:00:10]} 44. Bd3 {[%emt 0:00:28]} Bd8 {[%emt 0:00:49]} 45. Bb1 {[%emt 0:00:06]} Be7 {[%emt 0:00:45]} 46. Bd3 {[%emt 0:00:05]} Bf8 {[%emt 0:05:09]} 47. Bb1 {[%emt 0:00:02]} Bc5 {[%emt 0:00:06]} 48. Bc2 {[%emt 0:00:45]} Bd6 {[%emt 0:03:26]} 49. Bb1 {[%emt 0:01:45]} Bc7 {[%emt 0:00:34]} 50. Bc2 {[%emt 0:00:23]} Bd8 {[%emt 0:00:16]} 51. Bb1 {[%emt 0:00:06]} a6 {[%emt 0:03:19]} 52. Bd3 {[%emt 0:00:11]} b5 {[%emt 0:00:07]} 53. axb5 {[%emt 0:00:05]} a5 {[%emt 0:00:03]} 54. Bc2 {[%emt 0:01:37]} Kc4 {[%emt 0:00:52]} 55. Bd1 {[%emt 0:02:23]} Kc3 {[%emt 0:02:41]} 56. Ke3 {[%emt 0:01:24]} Kb4 {[%emt 0:01:48]} 57. Kd3 {[%emt 0:00:13]} a4 {[%emt 0:01:19]} 58. Kc2 {[%emt 0:05:09]} Kxb5 {[%emt 0:01:01]} 59. Kb2 {[%emt 0:00:07]} Kb4 {[%emt 0:00:28]} 60. Ka2 {[%emt 0:03:20]} Be7 {[%emt 0:02:10]} 61. Bc2 {[%emt 0:00:31]} Bd6 {[%emt 0:01:06]} 62. Bd1 {[%emt 0:00:20]} Bf8 {[%emt 0:00:43]} 63. f6 {[%emt 0:01:21]} g5 {[%emt 0:00:24]} 64. Bg4 {[%emt 0:00:44]} Kc3 {[%emt 0:00:15]} 65. Bd7 {[%emt 0:00:48]} a3 {[%emt 0:00:08]} 66. Bf5 {[%emt 0:00:13]} Kc2 {[%emt 0:00:16]} 67. Bg4 {[%emt 0:02:06]} Kd3 {[%emt 0:00:10]} 68. Bf5 {[%emt 0:00:07]} g4 {[%emt 0:00:21]} 69. Bxg4 {[%emt 0:00:07]} Kxe4 {[%emt 0:00:04]} 70. Kb3 {[%emt 0:00:15]} Kd3 {[%emt 0:00:12]} 71. Be6 {[%emt 0:00:33]} e4 {[%emt 0:03:39]} 72. Bf5 {[%emt 0:00:03]} Ke3 {[%emt 0:00:51]} 73. Kc2 {[%emt 0:00:09]} Kf3 {[%emt 0:00:08]} 74. Be6 {[%emt 0:00:16]} e3 {[%emt 0:00:18]} 75. Kd3 {[%emt 0:00:56]} e2 {[%emt 0:00:13]} 0-1

[Event "Paracin Open 2022"]
[Site "Paracin"]
[Date "2022.07.16"]
[Round "9.13"]
[White "Zanan, Evgeny"]
[Black "Ristic, Luka"]
[Result "1-0"]
[ECO "B92"]
[WhiteElo "2521"]
[BlackElo "2243"]
[Annotator "ChessBase"]
[PlyCount "79"]
[EventDate "2022.07.08"]
[EventCountry "SRB"]
[SourceTitle "playchess.com"]
[Source "ChessBase"]
[SourceQuality "1"]
[TimeControl "5400+30"]

1. e4 {[%emt 0:02:25]} c5 {[%emt 0:04:02]} 2. Nf3 {[%emt 0:00:14]} d6 {[%emt 0:00:03]} 3. d4 {[%emt 0:00:20]} cxd4 {[%emt 0:00:05]} 4. Nxd4 {[%emt 0:02:44]} Nf6 {[%emt 0:00:08]} 5. Nc3 {[%emt 0:00:06]} a6 {[%emt 0:00:23]} 6. Be2 {[%emt 0:00:07]} e5 {[%emt 0:00:36]} 7. Nb3 {[%emt 0:00:05]} Be7 {[%emt 0:00:21]} 8. O-O {[%emt 0:00:06]} O-O {[%emt 0:00:10]} 9. Kh1 {[%emt 0:00:04]} Nc6 {[%emt 0:02:30]} 10. Be3 {[%emt 0:05:18]} Be6 {[%emt 0:01:38]} 11. Nd2 {[%emt 0:01:36]} Rc8 {[%emt 0:16:31]} 12. Nc4 {[%emt 0:03:59]} Nd4 {[%emt 0:01:53]} 13. Bxd4 {[%emt 0:00:06]} Bxc4 {[%emt 0:00:24]} 14. Bxc4 {[%emt 0:02:21]} Rxc4 {[%emt 0:00:15]} 15. Be3 {[%emt 0:00:05]} h6 {[%emt 0:03:59]} 16. f3 {[%emt 0:07:13]} b5 {[%emt 0:06:16]} 17. a3 {[%emt 0:06:42]} Qa8 {[%emt 0:09:46]} 18. Rf2 {[%emt 0:04:19]} Rd8 {[%emt 0:07:06]} 19. Rd2 {[%emt 0:03:16]} Qc6 {[%emt 0:01:16]} 20. Ne2 {[%emt 0:24:05]} Qb7 {[%emt 0:02:16]} 21. Nc3 {[%emt 0:05:46]} Rdc8 {[%emt 0:05:33]} 22. Bf2 {[%emt 0:01:57]} b4 {[%emt 0:11:32]} 23. axb4 {[%emt 0:02:31]} Qxb4 {[%emt 0:00:56]} 24. Na4 {[%emt 0:01:40]} Nd7 {[%emt 0:01:38]} 25. c3 {[%emt 0:00:57]} Qb8 {[%emt 0:00:37]} 26. b3 {[%emt 0:00:44]} R4c6 {[%emt 0:00:15]} 27. c4 {[%emt 0:00:17]} Qb4 {[%emt 0:02:19]} 28. Rd3 {[%emt 0:00:52]} Bd8 {[%emt 0:02:47]} 29. Nc3 {[%emt 0:03:25]} Nc5 {[%emt 0:02:03]} 30. Bxc5 {[%emt 0:00:44]} Qxc5 {[%emt 0:00:05]} 31. Nd5 {[%emt 0:00:10]} Qa7 {[%emt 0:06:31]} 32. Ra4 {[%emt 0:02:48]} Rb8 {[%emt 0:01:25]} 33. Qa1 {[%emt 0:01:59]} a5 {[%emt 0:01:24]} 34. g3 {[%emt 0:03:54]} Bb6 {[%emt 0:03:45]} 35. Kg2 {[%emt 0:00:46]} Bd4 {[%emt 0:01:02]} 36. Rxa5 {[%emt 0:01:16]} Qb7 {[%emt 0:00:55]} 37. Qa4 {[%emt 0:00:25]} Kh7 {[%emt 0:01:00]} 38. Rxd4 {[%emt 0:08:34]} exd4 {[%emt 0:00:44]} 39. Rb5 {[%emt 0:00:37]} Qa7 {[%emt 0:05:14]} 40. Qxa7 {[%emt 0:00:08]} 1-0

[Event "Paracin Open 2022"]
[Site "Paracin"]
[Date "2022.07.16"]
[Round "9.14"]
[White "Saurabh Anand"]
[Black "Gundavaa, Bayarsaikhan"]
[Result "0-1"]
[ECO "D37"]
[WhiteElo "2215"]
[BlackElo "2503"]
[Annotator "ChessBase"]
[PlyCount "92"]
[EventDate "2022.07.08"]
[EventCountry "SRB"]
[SourceTitle "playchess.com"]
[Source "ChessBase"]
[SourceQuality "1"]
[TimeControl "5400+30"]

1. d4 {[%emt 0:06:27]} Nf6 {[%emt 0:00:40]} 2. c4 {[%emt 0:00:10]} e6 {[%emt 0:00:41]} 3. Nf3 {[%emt 0:00:21]} d5 {[%emt 0:02:29]} 4. Nc3 {[%emt 0:00:23]} a6 {[%emt 0:03:27]} 5. c5 {[%emt 0:00:52]} Nc6 {[%emt 0:05:15]} 6. Bf4 {[%emt 0:06:55]} Be7 {[%emt 0:01:01]} 7. e3 {[%emt 0:01:10]} Nh5 {[%emt 0:10:46]} 8. Bd3 {[%emt 0:03:52]} f5 {[%emt 0:13:50]} 9. Ne5 {[%emt 0:06:18]} Nxf4 {[%emt 0:02:52]} 10. exf4 {[%emt 0:00:11]} Nxe5 {[%emt 0:00:19]} 11. fxe5 {[%emt 0:00:09]} O-O {[%emt 0:03:35]} 12. O-O {[%emt 0:03:04]} b6 {[%emt 0:02:20]} 13. b4 {[%emt 0:05:11]} a5 {[%emt 0:01:14]} 14. a3 {[%emt 0:00:14]} c6 {[%emt 0:00:59]} 15. Na4 {[%emt 0:03:46]} bxc5 {[%emt 0:13:39]} 16. bxc5 {[%emt 0:01:22]} Ba6 {[%emt 0:02:54]} 17. Rb1 {[%emt 0:01:21]} Qc7 {[%emt 0:02:08]} 18. Rb6 {[%emt 0:01:52]} Bxd3 {[%emt 0:14:02]} 19. Qxd3 {[%emt 0:00:11]} Bd8 {[%emt 0:01:12]} 20. Rfb1 {[%emt 0:03:38]} Qc8 {[%emt 0:01:08]} 21. Qb3 {[%emt 0:03:29]} f4 {[%emt 0:01:04]} 22. f3 {[%emt 0:06:04]} h6 {[%emt 0:03:38]} 23. Rb7 {[%emt 0:05:04]} Bc7 {[%emt 0:00:13]} 24. Nc3 {[%emt 0:00:20]} Rf7 {[%emt 0:00:50]} 25. Ne2 {[%emt 0:02:28]} Qe8 {[%emt 0:04:22]} 26. Qd3 {[%emt 0:06:36]} a4 {[%emt 0:02:14]} 27. Qg6 {[%emt 0:03:51]} Qc8 {[%emt 0:00:07]} 28. R1b4 {[%emt 0:01:41]} Ra5 {[%emt 0:04:37]} 29. h4 {[%emt 0:01:59]} Ra8 {[%emt 0:00:06]} 30. h5 {[%emt 0:06:27]} Rf5 {[%emt 0:00:34]} 31. Rxc7 {[%emt 0:01:01]} Qxc7 {[%emt 0:00:20]} 32. Qxe6+ {[%emt 0:00:02]} Qf7 {[%emt 0:00:58]} 33. Qxc6 {[%emt 0:00:14]} Re8 {[%emt 0:00:44]} 34. Rb7 {[%emt 0:00:52]} Qxh5 {[%emt 0:00:55]} 35. Qxd5+ {[%emt 0:00:30]} Kh8 {[%emt 0:00:05]} 36. c6 {[%emt 0:03:00]} Qh4 {[%emt 0:00:25]} 37. Rb1 {[%emt 0:00:36]} Rh5 {[%emt 0:01:10]} 38. Kf1 {[%emt 0:00:42]} Qg5 {[%emt 0:01:56]} 39. Qd7 {[%emt 0:04:54]} Qg6 {[%emt 0:00:06]} 40. Qxe8+ {[%emt 0:00:56]} Qxe8 {[%emt 0:00:16]} 41. c7 {[%emt 0:00:02]} Rh1+ {[%emt 0:00:24]} 42. Ng1 {[%emt 0:00:02]} Kh7 {[%emt 0:00:20]} 43. d5 {[%emt 0:04:37]} Qg6 {[%emt 0:00:49]} 44. Re1 {[%emt 0:00:02]} Qd3+ {[%emt 0:00:20]} 45. Kf2 {[%emt 0:00:19]} Qd4+ {[%emt 0:00:42]} 46. Ke2 {[%emt 0:00:01]} Qxe5+ {[%emt 0:00:06]} 0-1

[Event "Paracin Open 2022"]
[Site "Paracin"]
[Date "2022.07.16"]
[Round "9.15"]
[White "Agmanov, Zhandos"]
[Black "Efremov, Vladislav"]
[Result "1/2-1/2"]
[ECO "C65"]
[WhiteElo "2459"]
[BlackElo "2185"]
[Annotator "ChessBase"]
[PlyCount "136"]
[EventDate "2022.07.08"]
[EventCountry "SRB"]
[SourceTitle "playchess.com"]
[Source "ChessBase"]
[SourceQuality "1"]
[TimeControl "5400+30"]

1. e4 {[%emt 0:00:20]} e5 {[%emt 0:00:18]} 2. Nf3 {[%emt 0:00:23]} Nc6 {[%emt 0:00:22]} 3. Bb5 {[%emt 0:00:51]} Nf6 {[%emt 0:00:43]} 4. d3 {[%emt 0:00:23]} Bc5 {[%emt 0:02:07]} 5. c3 {[%emt 0:00:16]} O-O {[%emt 0:02:54]} 6. O-O {[%emt 0:00:07]} d6 {[%emt 0:00:33]} 7. Ba4 {[%emt 0:01:15]} Ne7 {[%emt 0:14:01]} 8. Re1 {[%emt 0:05:17]} Ng6 {[%emt 0:02:41]} 9. d4 {[%emt 0:01:11]} Bb6 {[%emt 0:00:20]} 10. h3 {[%emt 0:00:44]} c6 {[%emt 0:09:13]} 11. Nbd2 {[%emt 0:01:06]} h6 {[%emt 0:07:03]} 12. Bc2 {[%emt 0:00:39]} Re8 {[%emt 0:04:01]} 13. Nf1 {[%emt 0:01:59]} d5 {[%emt 0:08:44]} 14. exd5 {[%emt 0:14:46]} e4 {[%emt 0:00:14]} 15. Ne5 {[%emt 0:00:09]} cxd5 {[%emt 0:05:33]} 16. Nxg6 {[%emt 0:00:18]} fxg6 {[%emt 0:00:06]} 17. Bf4 {[%emt 0:01:03]} g5 {[%emt 0:04:10]} 18. Bg3 {[%emt 0:02:12]} g4 {[%emt 0:00:44]} 19. hxg4 {[%emt 0:00:04]} Bxg4 {[%emt 0:01:31]} 20. Qd2 {[%emt 0:00:07]} Nh5 {[%emt 0:04:35]} 21. Bh2 {[%emt 0:01:41]} Bc7 {[%emt 0:02:30]} 22. Qe3 {[%emt 0:13:19]} Rf8 {[%emt 0:08:12]} 23. Bxc7 {[%emt 0:06:20]} Qxc7 {[%emt 0:00:07]} 24. Bb3 {[%emt 0:00:42]} Nf6 {[%emt 0:00:29]} 25. Qg3 {[%emt 0:02:44]} Qxg3 {[%emt 0:02:10]} 26. Nxg3 {[%emt 0:00:44]} Kh7 {[%emt 0:00:42]} 27. Re3 {[%emt 0:01:08]} Rae8 {[%emt 0:02:46]} 28. Rae1 {[%emt 0:02:01]} Bd7 {[%emt 0:01:45]} 29. f3 {[%emt 0:01:04]} exf3 {[%emt 0:00:14]} 30. gxf3 {[%emt 0:00:05]} Rxe3 {[%emt 0:00:40]} 31. Rxe3 {[%emt 0:00:01]} Re8 {[%emt 0:00:30]} 32. Re5 {[%emt 0:00:21]} Bc6 {[%emt 0:04:38]} 33. Kf2 {[%emt 0:00:26]} g6 {[%emt 0:02:46]} 34. Ne2 {[%emt 0:01:03]} Kg7 {[%emt 0:07:07]} 35. Ke3 {[%emt 0:02:10]} Kf7 {[%emt 0:00:23]} 36. Nf4 {[%emt 0:00:57]} g5 {[%emt 0:01:02]} 37. Nd3 {[%emt 0:00:01]} Nd7 {[%emt 0:01:33]} 38. Rxe8 {[%emt 0:03:08]} Kxe8 {[%emt 0:00:01]} 39. f4 {[%emt 0:00:37]} Ke7 {[%emt 0:00:26]} 40. Bd1 {[%emt 0:01:16]} Nf6 {[%emt 0:00:29]} 41. Ne5 {[%emt 0:00:54]} Bd7 {[%emt 0:00:14]} 42. fxg5 {[%emt 0:00:20]} hxg5 {[%emt 0:00:05]} 43. Bf3 {[%emt 0:00:09]} Be6 {[%emt 0:01:52]} 44. b3 {[%emt 0:00:16]} Kd6 {[%emt 0:00:21]} 45. a3 {[%emt 0:02:37]} b6 {[%emt 0:00:11]} 46. b4 {[%emt 0:01:55]} a5 {[%emt 0:01:03]} 47. Kd2 {[%emt 0:01:28]} axb4 {[%emt 0:00:05]} 48. cxb4 {[%emt 0:00:41]} Nd7 {[%emt 0:00:46]} 49. Nxd7 {[%emt 0:01:37]} Bxd7 {[%emt 0:00:07]} 50. Bd1 {[%emt 0:00:06]} Bf5 {[%emt 0:00:47]} 51. Ke3 {[%emt 0:00:17]} Kc6 {[%emt 0:01:24]} 52. Ba4+ {[%emt 0:00:22]} Kd6 {[%emt 0:00:04]} 53. Kf3 {[%emt 0:00:07]} Bc8 {[%emt 0:00:51]} 54. Kg3 {[%emt 0:00:12]} Bf5 {[%emt 0:00:13]} 55. Bb5 {[%emt 0:00:17]} Kc7 {[%emt 0:00:32]} 56. Be2 {[%emt 0:00:23]} Kc6 {[%emt 0:00:33]} 57. Bf1 {[%emt 0:01:29]} Be6 {[%emt 0:00:37]} 58. Bd3 {[%emt 0:02:23]} Bc8 {[%emt 0:00:17]} 59. Bc2 {[%emt 0:02:51]} Be6 {[%emt 0:00:09]} 60. Ba4+ {[%emt 0:00:05]} Kd6 {[%emt 0:00:04]} 61. Bb5 {[%emt 0:01:07]} Bf5 {[%emt 0:00:13]} 62. Kf3 {[%emt 0:01:41]} Be6 {[%emt 0:00:12]} 63. Kf2 {[%emt 0:00:05]} Bf5 {[%emt 0:00:31]} 64. Kg3 {[%emt 0:00:37]} Be6 {[%emt 0:00:11]} 65. Bd3 {[%emt 0:01:24]} Kc6 {[%emt 0:00:25]} 66. a4 {[%emt 0:01:25]} Kd6 {[%emt 0:00:19]} 67. a5 {[%emt 0:00:52]} bxa5 {[%emt 0:00:05]} 68. bxa5 {[%emt 0:00:02]} Kc6 {[%emt 0:00:41]} 1/2-1/2

[Event "Paracin Open 2022"]
[Site "Paracin"]
[Date "2022.07.16"]
[Round "9.16"]
[White "Makridis, Dimitrios"]
[Black "Srihari L R"]
[Result "1/2-1/2"]
[ECO "B07"]
[WhiteElo "2152"]
[BlackElo "2431"]
[Annotator "ChessBase"]
[PlyCount "67"]
[EventDate "2022.07.08"]
[EventCountry "SRB"]
[SourceTitle "playchess.com"]
[Source "ChessBase"]
[SourceQuality "1"]
[TimeControl "5400+30"]

1. e4 {[%emt 0:00:05]} g6 {[%emt 0:00:17]} 2. d4 {[%emt 0:00:20]} Bg7 {[%emt 0:00:07]} 3. c3 {[%emt 0:02:57]} d6 {[%emt 0:02:42]} 4. Bd3 {[%emt 0:01:14]} Nf6 {[%emt 0:01:51]} 5. Nf3 {[%emt 0:00:42]} O-O {[%emt 0:01:49]} 6. O-O {[%emt 0:01:14]} Nc6 {[%emt 0:03:29]} 7. Bg5 {[%emt 0:02:33]} h6 {[%emt 0:02:10]} 8. Bh4 {[%emt 0:00:54]} e5 {[%emt 0:01:16]} 9. dxe5 {[%emt 0:01:24]} dxe5 {[%emt 0:01:41]} 10. Qc2 {[%emt 0:01:32]} g5 {[%emt 0:06:34]} 11. Bg3 {[%emt 0:00:09]} Nh5 {[%emt 0:01:23]} 12. Re1 {[%emt 0:07:35]} Nf4 {[%emt 0:02:13]} 13. Bf1 {[%emt 0:03:51]} h5 {[%emt 0:19:17]} 14. Na3 {[%emt 0:17:00]} Ng6 {[%emt 0:16:19]} 15. h3 {[%emt 0:05:50]} h4 {[%emt 0:00:25]} 16. Bh2 {[%emt 0:00:01]} g4 {[%emt 0:00:57]} 17. hxg4 {[%emt 0:00:50]} Bxg4 {[%emt 0:00:02]} 18. Nc4 {[%emt 0:03:01]} Bxf3 {[%emt 0:16:21]} 19. gxf3 {[%emt 0:00:01]} Qg5+ {[%emt 0:00:01]} 20. Kh1 {[%emt 0:00:16]} Qf6 {[%emt 0:00:08]} 21. Qe2 {[%emt 0:11:04]} Qe6 {[%emt 0:04:04]} 22. Ne3 {[%emt 0:02:37]} Nce7 {[%emt 0:00:07]} 23. Ng4 {[%emt 0:09:34]} Rfd8 {[%emt 0:02:16]} 24. Bh3 {[%emt 0:02:27]} Qb6 {[%emt 0:00:42]} 25. Ne3 {[%emt 0:00:36]} Bh6 {[%emt 0:01:23]} 26. Rg1 {[%emt 0:06:28]} Kf8 {[%emt 0:01:22]} 27. Bf5 {[%emt 0:02:54]} Bf4 {[%emt 0:06:16]} 28. Bxg6 {[%emt 0:03:49]} Nxg6 {[%emt 0:00:37]} 29. Nd5 {[%emt 0:01:37]} Qe6 {[%emt 0:01:50]} 30. Rg4 {[%emt 0:03:34]} Bxh2 {[%emt 0:00:48]} 31. Kxh2 {[%emt 0:00:24]} Rd7 {[%emt 0:00:09]} 32. Qe3 {[%emt 0:00:52]} Kg7 {[%emt 0:03:56]} 33. Rag1 {[%emt 0:00:34]} c6 {[%emt 0:01:46]} 34. Rxh4 {[%emt 0:09:31]} 1/2-1/2

[Event "Paracin Open 2022"]
[Site "Paracin"]
[Date "2022.07.16"]
[Round "9.17"]
[White "Ozturk, Efe Hakan"]
[Black "Samant Aditya S"]
[Result "1/2-1/2"]
[ECO "A13"]
[WhiteElo "2115"]
[BlackElo "2431"]
[Annotator "ChessBase"]
[PlyCount "115"]
[EventDate "2022.07.08"]
[EventCountry "SRB"]
[SourceTitle "playchess.com"]
[Source "ChessBase"]
[SourceQuality "1"]
[TimeControl "5400+30"]

1. Nf3 {[%emt 0:00:07]} Nf6 {[%emt 0:00:57]} 2. c4 {[%emt 0:00:12]} e6 {[%emt 0:00:05]} 3. g3 {[%emt 0:00:17]} d5 {[%emt 0:00:05]} 4. Bg2 {[%emt 0:00:48]} d4 {[%emt 0:00:38]} 5. O-O {[%emt 0:02:35]} c5 {[%emt 0:00:42]} 6. e3 {[%emt 0:00:32]} Nc6 {[%emt 0:00:06]} 7. exd4 {[%emt 0:00:07]} cxd4 {[%emt 0:00:14]} 8. d3 {[%emt 0:00:13]} Bd6 {[%emt 0:00:38]} 9. a3 {[%emt 0:13:31]} a5 {[%emt 0:01:31]} 10. Bg5 {[%emt 0:00:07]} h6 {[%emt 0:00:52]} 11. Bxf6 {[%emt 0:00:11]} Qxf6 {[%emt 0:00:08]} 12. Nbd2 {[%emt 0:00:13]} Qd8 {[%emt 0:09:00]} 13. Re1 {[%emt 0:07:39]} O-O {[%emt 0:00:40]} 14. Qc2 {[%emt 0:13:55]} Re8 {[%emt 0:07:55]} 15. c5 {[%emt 0:13:47]} Bc7 {[%emt 0:03:31]} 16. Rab1 {[%emt 0:02:56]} a4 {[%emt 0:03:31]} 17. b4 {[%emt 0:03:39]} axb3 {[%emt 0:00:39]} 18. Rxb3 {[%emt 0:00:15]} e5 {[%emt 0:08:42]} 19. Nc4 {[%emt 0:08:02]} Na5 {[%emt 0:18:33]} 20. Nxa5 {[%emt 0:01:26]} Rxa5 {[%emt 0:00:01]} 21. Nd2 {[%emt 0:06:14]} Qe7 {[%emt 0:05:24]} 22. Rc1 {[%emt 0:04:05]} Ra7 {[%emt 0:03:14]} 23. Qb2 {[%emt 0:04:24]} Ba5 {[%emt 0:04:30]} 24. Ne4 {[%emt 0:02:18]} Be6 {[%emt 0:02:59]} 25. Rb5 {[%emt 0:03:39]} Rea8 {[%emt 0:00:05]} 26. Nd6 {[%emt 0:03:23]} Bc3 {[%emt 0:00:52]} 27. Qe2 {[%emt 0:00:08]} Bd7 {[%emt 0:09:33]} 28. Rxb7 {[%emt 0:00:19]} Rxb7 {[%emt 0:00:06]} 29. Bxb7 {[%emt 0:02:35]} Ra5 {[%emt 0:00:40]} 30. Ne4 {[%emt 0:02:43]} Rxa3 {[%emt 0:00:44]} 31. Bd5 {[%emt 0:02:48]} Be6 {[%emt 0:04:24]} 32. Bxe6 {[%emt 0:01:27]} Qxe6 {[%emt 0:00:01]} 33. Nxc3 {[%emt 0:00:40]} dxc3 {[%emt 0:00:06]} 34. Qe1 {[%emt 0:00:38]} Qb3 {[%emt 0:01:55]} 35. c6 {[%emt 0:01:16]} c2 {[%emt 0:07:12]} 36. Qd2 {[%emt 0:00:12]} Qxd3 {[%emt 0:02:06]} 37. Qxd3 {[%emt 0:00:11]} Rxd3 {[%emt 0:00:01]} 38. Rxc2 {[%emt 0:00:06]} Rd8 {[%emt 0:00:05]} 39. Kg2 {[%emt 0:00:42]} Kf8 {[%emt 0:00:06]} 40. Kf3 {[%emt 0:00:29]} Ke7 {[%emt 0:00:04]} 41. Ke4 {[%emt 0:00:30]} Ke6 {[%emt 0:00:15]} 42. g4 {[%emt 0:01:15]} g6 {[%emt 0:01:52]} 43. c7 {[%emt 0:00:31]} f5+ {[%emt 0:00:05]} 44. gxf5+ {[%emt 0:00:02]} gxf5+ {[%emt 0:00:02]} 45. Ke3 {[%emt 0:00:13]} Rc8 {[%emt 0:00:03]} 46. f4 {[%emt 0:01:32]} Kd6 {[%emt 0:00:05]} 47. fxe5+ {[%emt 0:00:28]} Kxe5 {[%emt 0:00:01]} 48. Rc5+ {[%emt 0:00:37]} Kd6 {[%emt 0:00:08]} 49. Rxf5 {[%emt 0:00:04]} Rxc7 {[%emt 0:00:03]} 50. Rf6+ {[%emt 0:00:08]} Ke5 {[%emt 0:00:01]} 51. Rxh6 {[%emt 0:00:07]} Rc3+ {[%emt 0:00:06]} 52. Kf2 {[%emt 0:00:28]} Kf4 {[%emt 0:00:05]} 53. Rh4+ {[%emt 0:00:14]} Kg5 {[%emt 0:00:01]} 54. Re4 {[%emt 0:00:15]} Rc2+ {[%emt 0:00:01]} 55. Kg3 {[%emt 0:00:16]} Rc3+ {[%emt 0:00:01]} 56. Kf2 {[%emt 0:00:12]} Rc2+ {[%emt 0:00:08]} 57. Re2 {[%emt 0:00:07]} Rxe2+ {[%emt 0:00:02]} 58. Kxe2 {[%emt 0:00:06]} 1/2-1/2